Cogmind - Beta 12 @@@ ROGUE MODE // 2023.07.27 @ 23:47:43 Player: Raix Result: Destroyed by S-27 Virus with Autogun Performance ------------- Evolutions (5) 2500 Regions Visited (9) 1800 Robots Destroyed (29) 145 Value Destroyed (728) 728 Prototype IDs (4) 80 Alien Tech Used (0) 0 Bonus (1500) 1500 TOTAL SCORE: 6753 Bonus ------- Entered DSFs 500 Met Warlord at Base 500 MAIN.C Attacked Warlord 500 Cogmind --------- Core Integrity 0/1000 Matter 300/300 Energy 64/100 System Corruption 6% Temperature Cool (0) Movement Core (50) Location -5/Warlord Parts ------- > --- POWER (2) -------- (None) > --- PROPULSION (8) --- (None) > --- UTILITY (5) ------ (None) > --- WEAPON (2) ------- (None) > --- INVENTORY (5) ---- Plasma Storm Peak State ------------ > --- POWER ------------ Light Angular Momentum Engine Enhanced Fission Core > --- PROPULSION ------- Xenon Bombardment Thruster Makeshift Flight Unit Makeshift Flight Unit Biomechanical Wings Nuclear Pulse Array Impulse Thruster Array > --- UTILITY ---------- Advanced Cooling System Advanced Cooling System Large Storage Unit Visual Processing Unit > --- WEAPON ----------- Enhanced Gauss Cannon Enhanced Gauss Cannon > --- INVENTORY -------- Backup Power III Cesium-ion Thruster Surge Thruster Advanced Heat Sink Advanced Signal Interpreter Plasma Storm Signal Generator Signal Generator [Rating: 91] Favorites ----------- Power Enhanced Fission Core Engine Backup Power III Power Core Enhanced Fission Core Propulsion Xenon Bombardment Thruster Leg Aluminum Leg Flight Unit Xenon Bombardment Thruster Utility Advanced Cooling System Device Advanced Cooling System Storage Large Storage Unit Processor Visual Processing Unit Weapon Backup Laser III Energy Gun Backup Laser III Energy Cannon Ion Cannon Ballistic Gun Light Assault Rifle Ballistic Cannon Enhanced Gauss Cannon Special Weapon RU-N14's Throwing Claymores v3 Build | -11 -10 -9 -8 -7 -7 -6 -5 -5 -5 ------- Run | Jun Mat Mat Mat Fac DSF Fac Fac Upp War Slots Evolved 10 | . . 2 2 2 . 2 2 . . Power 1 | . . . . . . 1 . . . Propulsion 6 | . . 2 . 2 . 1 1 . . Utility 3 | . . . 2 . . . 1 . . Weapon . | . . . . . . . . . . Parts Attached 118 | 6 10 7 15 8 24 4 24 . 20 Power 24 | 1 1 1 3 1 3 2 6 . 6 Engine 10 | 1 1 1 2 . 1 . . . 4 Core 14 | . . . 1 1 2 2 6 . 2 Reactor . | . . . . . . . . . . Propulsion 59 | 2 5 6 8 7 15 1 9 . 6 Treads . | . . . . . . . . . . Leg 10 | 2 3 1 4 . . . . . . Wheel . | . . . . . . . . . . Hover . | . . . . . . . . . . Flight 49 | . 2 5 4 7 15 1 9 . 6 Utility 13 | 1 2 . 3 . 2 1 2 . 2 Device 7 | . . . 2 . 2 . 1 . 2 Storage 3 | 1 1 . . . . 1 . . . Processor 3 | . 1 . 1 . . . 1 . . Hackware . | . . . . . . . . . . Protection . | . . . . . . . . . . Artifact . | . . . . . . . . . . Weapon 22 | 2 2 . 1 . 4 . 7 . 6 Energy Gun 5 | . 2 . . . . . 2 . 1 Energy Cannon 7 | . . . . . 4 . 3 . . Ballistic Gun 3 | 2 . . 1 . . . . . . Ballistic Cannon 6 | . . . . . . . 2 . 4 Launcher . | . . . . . . . . . . Special Weapon 1 | . . . . . . . . . 1 Impact Weapon . | . . . . . . . . . . Slashing Weapon . | . . . . . . . . . . Piercing Weapon . | . . . . . . . . . . Special Melee Weapon . | . . . . . . . . . . Unidentified Prototypes 4 | . . . . . . . 2 . 2 Corrupted Parts 1 | . . . . . . . . . 1 System Corruption 5 | . . . . . . . . . 5 Parts Lost 46 | . 1 . 10 . 15 . 8 1 11 Power 6 | . . . 1 . 1 . 2 . 2 Propulsion 30 | . 1 . 5 . 10 . 6 1 7 Utility 6 | . . . 1 . 3 . . . 2 Weapon 4 | . . . 3 . 1 . . . . Highest Loss Streak 11 | . 1 . 8 . 7 . 5 1 11 To Critical Strikes 1 | . 1 . . . . . . . . Average Slot Usage (%) 83 | . 89 99 82 80 82 73 76 73 81 Engine 6 | . 13 11 2 7 1 . . . 6 Core 3 | . . . 4 . 5 8 8 9 3 Leg 6 | . 26 . 23 18 . . . . . Flight 29 | . . 43 6 22 40 46 40 39 37 Device 6 | . . . 7 7 5 . 4 5 9 Storage 7 | . 14 11 9 7 7 10 9 5 4 Processor 8 | . 4 11 18 15 12 6 7 11 7 Energy Gun 6 | . 9 22 2 . . . . . 7 Ballistic Gun 3 | . 18 . 7 . . . . . . Naked Turns 1 | . . . . . . . . . 1 Heaviest Build 58 | 13 16 15 17 16 31 35 55 41 58 Greatest Support 57 | 20 20 16 43 21 36 36 49 43 57 Greatest Overweight (x) 3 | . 1 . 2 . 1 . 1 . 3 Average Overweight (x) . | . . . . . . . . . . Largest Inventory Capacity 15 | 8 10 10 10 10 10 15 15 15 15 Average Capacity 12 | 6 8 10 10 10 10 13 15 15 14 Most Carried 15 | 5 10 10 10 9 10 10 14 12 15 Average Carried 11 | . 5 8 8 8 8 9 10 11 13 Final Capacity 15 | 8 10 10 10 10 10 15 15 15 5 Final Carried 12 | . 10 10 10 9 10 10 11 12 5 Class Distribution -------------------- 49% | Sprinter 29% | Mutant 12% | Scavenger-Mutant 4% | Scavenger-Sprinter 3% | Scout Dominant Class ---------------- Mutant | -10/Materials Scavenger-Sprinter | -9/Materials Scavenger-Mutant | -8/Materials Scavenger-Mutant | -7/Factory Sprinter | -7/DSF Sprinter | -6/Factory Mutant | -5/Factory Sprinter | -5/Upper Caves Sprinter | -5/Warlord Resources | -11 -10 -9 -8 -7 -7 -6 -5 -5 -5 ----------- Run | Jun Mat Mat Mat Fac DSF Fac Fac Upp War Matter Collected 1308 | 225 234 70 110 . 202 . 84 . 383 Remotely . | . . . . . . . . . . Salvage Created 857 | . 271 70 218 . 201 . 97 . . Parts 58 | . 16 3 15 . 12 . 12 . . Haulers Intercepted . | . . . . . . . . . . Recyclers Shooed . | . . . . . . . . . . Parts Field Recycled . | . . . . . . . . . . Retrieved Matter . | . . . . . . . . . . Parts Self-Destructed . | . . . . . . . . . . Prevented . | . . . . . . . . . . Kills | -11 -10 -9 -8 -7 -7 -6 -5 -5 -5 ------- Run | Jun Mat Mat Mat Fac DSF Fac Fac Upp War Combat Hostiles Destroyed 25 | . 8 1 7 . 6 . 3 . . Guns 16 | . 8 1 7 . . . . . . Cannons 8 | . . . . . 5 . 3 . . Classes Destroyed 8 | . 4 1 . . 2 . 1 . . Builder 1 | . . . . . . . 1 . . Operator 2 | . 1 1 . . . . . . . Watcher 1 | . 1 . . . . . . . . Swarmer 12 | . 3 . 4 . 2 . 3 . . Cutter 3 | . . . . . 3 . . . . Grunt 6 | . 5 . 1 . . . . . . Sentry 3 | . . 1 2 . . . . . . Specialist 1 | . . . . . 1 . . . . Best Kill Streak 5 | . 4 2 5 . 4 . 2 . . Combat Bots Only 5 | . 3 1 5 . 4 . 2 . . Max Kills in Single Turn 2 | . 2 1 1 . 1 . 1 . . Gunslinging . | . . . . . . . . . . Exploded . | . . . . . . . . . . Melee . | . . . . . . . . . . Uniques/NPCs Destroyed . | . . . . . . . . . . Combat | -11 -10 -9 -8 -7 -7 -6 -5 -5 -5 -------- Run | Jun Mat Mat Mat Fac DSF Fac Fac Upp War Damage Taken 4711 | . 412 58 747 . 1335 . 668 33 1458 Core 1750 | . 62 15 216 . 446 . 190 . 821 Absorbed by Shields 31 | . . . . . 31 . . . . Regen/Repaired (Parts) 22 | . . . . . . . . . 22 Core Remaining (%) 77 | 100 75 96 60 . 36 100 . . . Volleys Fired 100 | . 30 4 34 . 22 . 10 . . Largest 2 | . 2 2 2 . 2 . 2 . . Hottest 137 | . 80 80 80 . 133 . 137 . . Shots Fired 163 | . 60 8 41 . 40 . 14 . . Gun 113 | . 60 8 41 . . . 4 . . Cannon 50 | . . . . . 40 . 10 . . Launcher . | . . . . . . . . . . Special . | . . . . . . . . . . Kinetic 72 | . 52 . 20 . . . . . . Thermal 91 | . 8 8 21 . 40 . 14 . . Explosive . | . . . . . . . . . . Electromagnetic . | . . . . . . . . . . Robot Hit Streak 7 | . 6 6 6 . 4 . 7 . . Robot Miss Streak 5 | . 4 3 2 . 5 . 3 . . Penetration Max . | . . . . . . . . . . Secondary Targets 2 | . . . 2 . . . . . . Max Gunslinging Chain 1 | . . . 1 . . . . . . Shots Hit Robots 92 | . 32 6 26 . 20 . 8 . . Core Hits 45 | . 18 4 14 . 5 . 4 . . Critical Kills 1 | . . . . . 1 . . . . Critical Parts Destroyed . | . . . . . . . . . . Critical Strikes 1 | . . . . . 1 . . . . Meltdown 1 | . . . . . 1 . . . . Melee Attacks . | . . . . . . . . . . Impact . | . . . . . . . . . . Slashing . | . . . . . . . . . . Piercing . | . . . . . . . . . . Sneak Attacks . | . . . . . . . . . . Combat Hostiles . | . . . . . . . . . . Follow-up Attacks . | . . . . . . . . . . Damage Inflicted 1365 | . 366 68 269 . 472 . 190 . . Guns 699 | . 351 68 261 . . . 19 . . Cannons 643 | . . . . . 472 . 171 . . Explosions . | . . . . . . . . . . Melee . | . . . . . . . . . . Ramming 23 | . 15 . 8 . . . . . . Kinetic 424 | . 328 . 96 . . . . . . Thermal 918 | . 23 68 165 . 472 . 190 . . Explosive . | . . . . . . . . . . Electromagnetic . | . . . . . . . . . . Impact . | . . . . . . . . . . Slashing . | . . . . . . . . . . Piercing . | . . . . . . . . . . Highest Corruption 6 | . . . . . . . . . 6 Average Corruption 5 | . . . . . . . . . 5 Corruption Purged . | . . . . . . . . . . Corruption Blocked . | . . . . . . . . . . Effects 13 | . . . . . . . . . 13 Message Errors 2 | . . . . . . . . . 2 Matter Fused 3 | . . . . . . . . . 3 Heat Flow Errors 1 | . . . . . . . . . 1 Energy Discharges 2 | . . . . . . . . . 2 Parts Fused 2 | . . . . . . . . . 2 Data Loss (minor) 2 | . . . . . . . . . 2 Data Loss (major) 1 | . . . . . . . . . 1 Overload Shots . | . . . . . . . . . . Overflow Damage . | . . . . . . . . . . Projectiles . | . . . . . . . . . . Explosions . | . . . . . . . . . . Melee . | . . . . . . . . . . Knockbacks . | . . . . . . . . . . Impact . | . . . . . . . . . . Kinetic . | . . . . . . . . . . Secondary . | . . . . . . . . . . Self-Inflicted Damage . | . . . . . . . . . . Shots . | . . . . . . . . . . Rammed . | . . . . . . . . . . Targets Rammed 4 | . 2 . 2 . . . . . . Kicked 4 | . 2 . 2 . . . . . . Crushed . | . . . . . . . . . . Highest Temperature 312 | . 54 51 57 . 24 102 30 . 312 Average Temperature 25 | . 18 19 27 . 11 43 10 . 138 Received Heat Transfer 657 | . 90 24 279 . 138 . . . 126 Siege Activations . | . . . . . . . . . . Robots Corrupted . | . . . . . . . . . . Combat Hostiles . | . . . . . . . . . . Parts Fried . | . . . . . . . . . . Impact Corruptions . | . . . . . . . . . . Robots Melted 1 | . . . . . 1 . . . . Combat Hostiles 1 | . . . . . 1 . . . . Parts Melted 3 | . . 1 . . 2 . . . . Heat Transferred 1685 | . 50 150 375 . 777 . 333 . . Parts Sabotaged 2 | . . . . . . . . . 2 Parts Stolen . | . . . . . . . . . . Parts Stripped . | . . . . . . . . . . Power Chain Reactions . | . . . . . . . . . . Missiles Intercepted . | . . . . . . . . . . Alert | -11 -10 -9 -8 -7 -7 -6 -5 -5 -5 ------- Run | Jun Mat Mat Mat Fac DSF Fac Fac Upp War Peak Influence 416 | . 262 61 168 67 331 173 416 . . Initial 173 | . . 26 18 67 46 173 84 . . Average 121 | . 108 41 119 67 137 173 195 . . Maximum Alert Level 2 | . 1 . . . 1 . 2 . . Low Security (%) 82 | 100 77 100 100 100 75 100 59 . . Level 1 17 | . 22 . . . 25 . 38 . . Level 2 . | . . . . . . . 2 . . Level 3 . | . . . . . . . . . . Level 4 . | . . . . . . . . . . Level 5 . | . . . . . . . . . . High Security . | . . . . . . . . . . Max Security . | . . . . . . . . . . Squads Dispatched 11 | . 4 . 1 . 4 . 2 . . Investigation 3 | . 3 . . . . . . . . Extermination . | . . . . . . . . . . Reinforcement 7 | . 1 . 1 . 4 . 1 . . Assault 1 | . . . . . . . 1 . . Garrison . | . . . . . . . . . . Intercept . | . . . . . . . . . . Searches Triggered . | . . . . . . . . . . Construction Impeded . | . . . . . . . . . . Haulers Reinforced . | . . . . . . . . . . Active Scanning Responses . | . . . . . . . . . . Cargo Convoy Interrupts . | . . . . . . . . . . Stealth | -11 -10 -9 -8 -7 -7 -6 -5 -5 -5 --------- Run | Jun Mat Mat Mat Fac DSF Fac Fac Upp War Distress Signals 4 | . 1 . 1 . . . 1 . 1 Communications Jammed . | . . . . . . . . . . Distress Signals . | . . . . . . . . . . Times Spotted 214 | . 14 6 13 . 34 2 27 3 115 Peak Tracking Total 72 | . 5 3 6 . 12 2 9 6 72 Tactical Retreats 15 | . . . . . 7 . 3 . 5 Traps | -11 -10 -9 -8 -7 -7 -6 -5 -5 -5 ------- Run | Jun Mat Mat Mat Fac DSF Fac Fac Upp War Traps Triggered 7 | . 2 . . . 3 . 1 . 1 Indirectly . | . . . . . . . . . . Trap Hack Attempts . | . . . . . . . . . . Triggered . | . . . . . . . . . . Disarmed . | . . . . . . . . . . Reprogrammed . | . . . . . . . . . . Reused . | . . . . . . . . . . Traps Extracted . | . . . . . . . . . . Installed . | . . . . . . . . . . Triggered 34 | . . . . . . . . . 34 Machines | -11 -10 -9 -8 -7 -7 -6 -5 -5 -5 ---------- Run | Jun Mat Mat Mat Fac DSF Fac Fac Upp War Machines Disabled 1 | . . . . . 1 . . . . Max in Single Turn 1 | . . . . . 1 . . . . Garrison Access 1 | . . . . . . . 1 . . Machines Repaired . | . . . . . . . . . . Machines Sabotaged . | . . . . . . . . . . Overloaded Fab Kills . | . . . . . . . . . . Hacking | -11 -10 -9 -8 -7 -7 -6 -5 -5 -5 --------- Run | Jun Mat Mat Mat Fac DSF Fac Fac Upp War Machines Accessed 11 | . 4 2 . 1 . . . . 4 Terminals 4 | . 2 1 . 1 . . . . . Fabricators . | . . . . . . . . . . Repair Stations . | . . . . . . . . . . Recycling Units 3 | . 2 1 . . . . . . . Scanalyzers . | . . . . . . . . . . Garrison Access . | . . . . . . . . . . Total Hacks 24 | . 11 4 . 1 . . . . 8 Successful 15 | . 4 2 . 1 . . . . 8 Failed 9 | . 7 2 . . . . . . . Catastrophic 1 | . 1 . . . . . . . . Database Lockouts . | . . . . . . . . . . Manual 7 | . . . . . . . . . 7 Terminals 8 | . 5 2 . 1 . . . . . Fabricators . | . . . . . . . . . . Repair Stations . | . . . . . . . . . . Recycling Units 8 | . 6 2 . . . . . . . Scanalyzers . | . . . . . . . . . . Garrison Access . | . . . . . . . . . . Terminal Hacks 12 | . 2 1 . 1 . . . . 8 Record 8 | . 2 . . . . . . . 6 Open Door 2 | . . . . . . . . . 2 Open DSF 1 | . . . . 1 . . . . . Unreport Threat 1 | . . 1 . . . . . . . Fabricator Hacks . | . . . . . . . . . . Repair Station Hacks . | . . . . . . . . . . Recycling Unit Hacks 3 | . 2 1 . . . . . . . Retrieve Matter 1 | . 1 . . . . . . . . Retrieve Components 2 | . 1 1 . . . . . . . Scanalyzer . | . . . . . . . . . . Garrison Access Hacks . | . . . . . . . . . . Unauthorized Hacks . | . . . . . . . . . . Terminals . | . . . . . . . . . . Fabricators . | . . . . . . . . . . Repair Stations . | . . . . . . . . . . Recycling Units . | . . . . . . . . . . Scanalyzers . | . . . . . . . . . . Garrison Access . | . . . . . . . . . . Data Cores Recovered 1 | . . 1 . . . . . . . Used . | . . . . . . . . . . Hacking Detections 6 | . 4 2 . . . . . . . Full Trace Events 2 | . 2 . . . . . . . . Feedback Events . | . . . . . . . . . . Feedback Blocked . | . . . . . . . . . . Robot Schematics Acquired . | . . . . . . . . . . Robots Built . | . . . . . . . . . . Authchips . | . . . . . . . . . . Time . | . . . . . . . . . . Total Robot Build Rating . | . . . . . . . . . . Part Schematics Acquired . | . . . . . . . . . . Parts Built . | . . . . . . . . . . Authchips . | . . . . . . . . . . Time . | . . . . . . . . . . Total Part Build Rating . | . . . . . . . . . . Parts Repaired . | . . . . . . . . . . Time . | . . . . . . . . . . Parts Recycled . | . . . . . . . . . . Recycled Matter . | . . . . . . . . . . Retrieved Matter . | . . . . . . . . . . Retrieved Components 9 | . 7 2 . . . . . . . Parts Scanalyzed . | . . . . . . . . . . Part Schematics Acquired . | . . . . . . . . . . Parts Damaged . | . . . . . . . . . . Bothacking | -11 -10 -9 -8 -7 -7 -6 -5 -5 -5 ------------ Run | Jun Mat Mat Mat Fac DSF Fac Fac Upp War Used RIF Installer . | . . . . . . . . . . Robots Hacked . | . . . . . . . . . . Non-combat . | . . . . . . . . . . Combat . | . . . . . . . . . . Robot Hacks Applied . | . . . . . . . . . . Relay Couplers Released 2 | . . . . . . . 2 . . Machine Destruction 2 | . . . . . . . 2 . . Fabnet Peak Effective % . | . . . . . . . . . . Robots Rewired . | . . . . . . . . . . Allies Hacked . | . . . . . . . . . . Hacks Repelled . | . . . . . . . . . . Allies | -11 -10 -9 -8 -7 -7 -6 -5 -5 -5 -------- Run | Jun Mat Mat Mat Fac DSF Fac Fac Upp War Total Allies . | . . . . . . . . . . Largest Group . | . . . . . . . . . . Highest-Rated Group . | . . . . . . . . . . Highest-Rated Ally . | . . . . . . . . . . Total Orders . | . . . . . . . . . . Ally Attacks . | . . . . . . . . . . Total Damage . | . . . . . . . . . . Kills . | . . . . . . . . . . Allies Corrupted . | . . . . . . . . . . Allies Melted . | . . . . . . . . . . Intel | -11 -10 -9 -8 -7 -7 -6 -5 -5 -5 ------- Run | Jun Mat Mat Mat Fac DSF Fac Fac Upp War Robot Analysis Total . | . . . . . . . . . . Derelict Logs Recovered 1 | . . . . . . . . 1 . Drone Launches . | . . . . . . . . . . Drone Recoveries . | . . . . . . . . . . Exploration | -11 -10 -9 -8 -7 -7 -6 -5 -5 -5 ------------- Run | Jun Mat Mat Mat Fac DSF Fac Fac Upp War Turns Passed 3460 | 45 507 125 318 21 284 29 236 50 1845 Spaces Moved 4617 | 40 313 262 212 8 371 88 500 255 2568 Core 21 | 20 . . . . . . . . 1 Treads . | . . . . . . . . . . Legs 489 | 20 313 . 156 . . . . . . Wheels . | . . . . . . . . . . Hover . | . . . . . . . . . . Flight 4107 | . . 262 56 8 371 88 500 255 2567 Fastest Speed 19 | 50 120 29 29 26 23 25 19 19 22 Average Speed 38 | 85 121 30 98 26 27 25 22 19 30 Slowest Speed 235 | 120 190 31 195 26 117 25 102 22 235 Overloaded Moves . | . . . . . . . . . . Propulsion Burnouts . | . . . . . . . . . . Robots Hopped 51 | . . 15 . . 1 . 5 . 30 Cave-ins Triggered . | . . . . . . . . . . Exploration Rate (%) 38 | 2 43 28 21 . 97 3 18 37 94 Regions Visited 9 Branch Regions 2 Pre-discovered Areas . | . . . . . . . . . . Known Exits Taken 4 | . . . 1 1 . . 1 1 . Unknown Exits Taken 4 | 1 1 1 . . . 1 . . . Scrap Searched . | . . . . . . . . . . Spaces Dug . | . . . . . . . . . . Terrain Destroyed . | . . . . . . . . . . Melee . | . . . . . . . . . . Projectile . | . . . . . . . . . . AOE . | . . . . . . . . . . Terrain Rammed . | . . . . . . . . . . Walls Destroyed . | . . . . . . . . . . Machines Disabled . | . . . . . . . . . . Actions | -11 -10 -9 -8 -7 -7 -6 -5 -5 -5 --------- Run | Jun Mat Mat Mat Fac DSF Fac Fac Upp War Total 6131 | 51 388 289 285 26 525 95 611 255 3606 Wait 1145 | . 8 15 8 7 40 . 58 . 1009 Move 4520 | 39 312 233 211 7 368 87 489 254 2520 Hop 37 | . . 13 . . 1 . 5 . 18 Pick Up 107 | 6 19 8 11 . 36 1 12 . 14 Fast Attach . | . . . . . . . . . . Attach 94 | 6 8 5 13 5 18 4 23 . 12 Detach 34 | . 2 3 3 4 . 3 12 1 6 Swap 24 | . 2 2 2 3 6 . 1 . 8 Drop 52 | . 5 6 1 . 20 . 1 . 19 Fire 100 | . 30 4 34 . 22 . 10 . . Melee . | . . . . . . . . . . Ram . | . . . . . . . . . . Kick 4 | . 2 . 2 . . . . . . Crush . | . . . . . . . . . . Escape Stasis 14 | . . . . . 14 . . . . Rewire . | . . . . . . . . . . Trap . | . . . . . . . . . . Miscellaneous . | . . . . . . . . . . Route ------- -11/Junkyard -10/Materials -9/Materials -8/Materials -7/Factory -7/DSF -6/Factory -5/Factory -5/Upper Caves -5/Warlord History --------- Turn | Location | Event 2 | -11/Junkyard | Discovered new exit (range 16) 46 | -11/Junkyard | Entered Materials 313 | -10/Materials | Build established: Mutant 491 | -10/Materials | Discovered new exit (range 10) 553 | -10/Materials | Entered another Materials area 553 | -9/Materials | Evolved 2 slots: Propulsion x2 647 | -9/Materials | Discovered new exit (range 16) 678 | -9/Materials | Entered another Materials area 678 | -8/Materials | Evolved 2 slots: Utility x2 780 | -8/Materials | Lost 8 parts (1p5n2w) 949 | -8/Materials | Discovered new exit (range 4) 995 | -8/Materials | Identified exit to Factory 996 | -8/Materials | Entered Factory 996 | -7/Factory | Evolved 2 slots: Propulsion x2 1016 | -7/Factory | Identified exit to DSF 1017 | -7/Factory | Entered DSF 1038 | -7/DSF | Additional patrols routed to DSF 1062 | -7/DSF | Discovered new exit (range 18) 1165 | -7/DSF | Lost 7 parts (1p5n1u) 1228 | -7/DSF | Core integrity fell below 50% 1301 | -7/DSF | Entered Factory 1301 | -6/Factory | Evolved 2 slots: Power x1, Propulsion x1 1312 | -6/Factory | Lost 6 parts (3n2u1w) 1322 | -6/Factory | Discovered new exit (range 3) 1330 | -6/Factory | Entered another Factory area 1330 | -5/Factory | Evolved 2 slots: Propulsion x1, Utility x1 1465 | -5/Factory | Spotted B-75 Beast 1487 | -5/Factory | Lost 5 parts (1p4n) 1565 | -5/Factory | Discovered new exit (range 3) 1566 | -5/Factory | Identified exit to Upper Caves 1566 | -5/Factory | Entered Upper Caves 1568 | -5/Upper Caves | Encountered a Warlord checkpoint 1614 | -5/Upper Caves | A Derelict revealed a hidden shortcut to "reach the base" 1616 | -5/Upper Caves | Identified exit to Warlord 1616 | -5/Upper Caves | Entered Warlord 1634 | -5/Warlord | Received a Watcher feed algorithm from an ecstatic Tinkerer 2077 | -5/Warlord | Found Prototype Energy Gun 2146 | -5/Warlord | Found Signal Generator 2147 | -5/Warlord | Found Signal Generator 2156 | -5/Warlord | Warlord's base attacked by MAIN.C 2203 | -5/Warlord | Met Warlord 2244 | -5/Warlord | Found Prototype Device 2245 | -5/Warlord | Identified Minesniffer Drone Bay 2247 | -5/Warlord | Found Minesniffer Drone Bay 2364 | -5/Warlord | Build established: Sprinter 2506 | -5/Warlord | Warlord forces counterattacked 2522 | -5/Warlord | Found Prototype Special Weapon 2524 | -5/Warlord | Identified RU-N14's Throwing Claymores v3 2553 | -5/Warlord | Spotted Executioner 2558 | -5/Warlord | Spotted Striker 2558 | -5/Warlord | Spotted Executioner 2831 | -5/Warlord | Warlord base infiltrated, sounded retreat 2848 | -5/Warlord | Spotted Striker 3396 | -5/Warlord | Spotted Striker 3403 | -5/Warlord | Spotted Executioner 3420 | -5/Warlord | Spotted Executioner 3433 | -5/Warlord | Spotted Striker 3434 | -5/Warlord | Spotted Executioner 3436 | -5/Warlord | Spotted Striker 3436 | -5/Warlord | Spotted Striker 3456 | -5/Warlord | Core integrity fell below 50% 3456 | -5/Warlord | Spotted Executioner 3459 | -5/Warlord | Core integrity fell below 20% 3461 | -5/Warlord | Destroyed by S-27 Virus with Autogun Last Messages --------------- 03446_ ANNOUNCEMENT: MAIN.C reinforcements approaching through caves, arriving soon. 03453_ Dropped Surge Thruster. 03453_ Dropped Lrg. Storage Unit. 03456_ ANNOUNCEMENT: Detected 1 Grunt squad, 2 Swarmer squads, 1 Melee squad, with prototype support. 03456_ Deuterium Array explodes. 03456_ S-27 Virus destroyed. 03456_ E-15 Imp destroyed. 03456_ Knocked back. 03458_ Striker knocked back. 03458_ S-27 Virus system corrupted by crushing effect. 03458_ S-27 Virus destroyed. 03458_ Deuterium Array explodes. 03458_ S-27 Virus destroyed. 03460_ Visual Processing Unit destroyed. 03460_ Critical hit (Blast). 03460_ Slug penetrates Wall. 03460_ Biomechanical Wings destroyed. 03461_ System corrupted: Component data lost. Map ----- +----------------------------------------------------+ | # # #?????#""#??###???? | | # " #?????#""#????????? | | # # #?????#""#????????? | | # # ##+###/####???????????????? | | ########### ### #???????????????? | | #?????????# #?# #???????????????? | | ########?????????# #?# !! #???????????????? | | ############## #?# ! ! #???????????????? | | =# / #?# !! #???????????????? | | */% ########## #?# #???????????????? | | # #????????# ### #???????????????# | | # #????????# + #???????????????# | | # =!# "" #?######## ############???????????????# | | #/=%# "" #?# * ## #??????????????????????????# | | # =!/ """ #?#| + #############??????????????# | | #% # """ #?#|| ## + #??????????????? | | ### # "" ###|| # ### #??????????????? | | ??# # "" # # ## ## #?# !!! #??????????????? | | ??# # ## ### #??????????????? | | ??# # ## ## ||| #??????????????? | | ??#%#### # ## #??????????????? | | ??#!]*=!!* s= # #??????????????? | | ??#]#####/ K ## #?????###??????? | | ??# #???# % #########+########X######## | | ??# #???# %K % gg gx | | ??# #???# @ | | ??# #######s ;;# ###################### | | ??# / #######????????????????????? | | ??######### ##??????????????????????????? | | ??????????## #???????????????????????????? | | ???????????### # ###???????????????????????????? | | ?????????????#?####??????????????????????????????? | | | | | | | | | | | | | | | | | | | | | | | | | | | | | | | | | | | | | +----------------------------------------------------+ Best States ------------- Heat Dissipation 102 Energy Generation 34 Energy Capacity 400 Matter Stores 300 Matter Capacity 300 Sight Range 18 Robot Scan Range 15 Terrain Scan Range 14 Terrain Scan Density 10 Evasion (%) 66 Item Schematics ----------------- None Robot Schematics ------------------ None Fabricated ------------ Nothing Alien Tech Used ----------------- None Achievements -------------- None Challenges ------------ None Game ------ Seed MachineSubatomicStripper Manual? 0 Play Time 01:06:31 Cumulative 6.8 hours Start 2023.07.27 @ 22:43:49 End 2023.07.27 @ 23:47:43 Sessions 1 Manual Loads 0 Difficulty Rogue Special Mode None Game No. 5 Rogue 5 Adventurer 0 Explorer 0 Win Type - Total 0 Types 0/0/0/0/0/0/0/0/0 Lore% 8 Gallery% 12 Achievement% 22 Wizard Run 0 Options --------- ASCII 0 Keyboard 0 Movement Numpad Keybinds 0 Fullscreen 1 Font 18/SmallcapsGlow Map View 76x50 Tactical HUD 1 Map Filters NONE Filters NONE Steam 1 RUN: cb31c5f4-9ae9-43ce-a632-f168b9f34bcd